Cogmind - Beta 15 @@@ ROGUE MODE // 2025.05.16 @ 12:18:49 Player: Darcyisverycute Result: Destroyed by Y-54 Guardian with Flak Gun Performance ------------- Evolutions (0) 0 Regions Visited (3) 600 Robots Destroyed (34) 170 Value Destroyed (977) 977 Prototype IDs (0) 0 Alien Tech Used (0) 0 Bonus (0) 0 TOTAL SCORE: 1747 Bonus ------- None Cogmind --------- Core Integrity 0/250 Matter 164/300 Energy 286/290 System Corruption 2% Temperature Warm (198) Movement Treading (250) Ox1 Location -7/Recycling Parts ------- > --- POWER (1) -------- Improved Deuterium Engine > --- PROPULSION (2) --- Light Treads Spiked Treads > --- UTILITY (2) ------ High-capacity Storage Unit Improved Light Armor Plating > --- WEAPON (2) ------- Rocket Launcher > --- INVENTORY (20) --- Light Treads Light Treads Subdweller Monowheel Subdweller Monowheel Machine Analyzer Subdweller Optics Improved Salvage Targeting Computer Improved Melee Analysis Suite Scrap Shield Hacking Suite Subdweller Laser Subdweller Beam Cannon Subdweller Beam Cannon Subdweller Machine Gun Subdweller Machine Gun Subdweller Machine Gun Rocket Launcher Rocket Launcher Peak State ------------ > --- POWER ------------ Improved Deuterium Engine > --- PROPULSION ------- Spiked Treads Spiked Treads > --- UTILITY ---------- High-capacity Storage Unit Improved Light Armor Plating > --- WEAPON ----------- Subdweller Beam Cannon Subdweller Machine Gun > --- INVENTORY -------- Light Treads Light Treads Light Treads Subdweller Monowheel Subdweller Monowheel Machine Analyzer Subdweller Optics Improved Melee Analysis Suite Scrap Shield Hacking Suite Subdweller Laser Subdweller Beam Cannon Subdweller Machine Gun Subdweller Machine Gun Rocket Launcher Rocket Launcher Rocket Launcher Rocket Launcher Datajack [Rating: 20] Favorites ----------- Power Ion Engine Engine Ion Engine Propulsion Spiked Treads Treads Spiked Treads Utility High-capacity Storage Unit Device Improved Terrain Scanner Storage High-capacity Storage Unit Protection Scrap Shield Weapon Subdweller Beam Cannon Energy Gun EM Pulse Gun Energy Cannon Subdweller Beam Cannon Ballistic Gun Subdweller Machine Gun Launcher Rocket Launcher Special Weapon Mining Laser Build | -11 -10 -10 -7 ------- Run | Yrd Mat Sub Rec Slots Evolved . | . . . . Power . | . . . . Propulsion . | . . . . Utility . | . . . . Weapon . | . . . . Parts Attached 26 | 7 2 12 5 Power 4 | 1 . 2 1 Engine 4 | 1 . 2 1 Core . | . . . . Reactor . | . . . . Propulsion 6 | 2 1 2 1 Treads 6 | 2 1 2 1 Leg . | . . . . Wheel . | . . . . Hover . | . . . . Flight . | . . . . Utility 6 | 2 1 2 1 Device 1 | 1 . . . Storage 2 | 1 1 . . Processor . | . . . . Hackware . | . . . . Protection 3 | . . 2 1 Artifact . | . . . . Weapon 10 | 2 . 6 2 Energy Gun 2 | 2 . . . Energy Cannon 2 | . . 2 . Ballistic Gun 2 | . . 2 . Ballistic Cannon . | . . . . Launcher 3 | . . 1 2 Special Weapon 1 | . . 1 . Impact Weapon . | . . . . Slashing Weapon . | . . . . Piercing Weapon . | . . . . Special Melee Weapon . | . . . . Unidentified Prototypes . | . . . . Parts Lost 4 | . . 2 2 Power 1 | . . 1 . Propulsion 1 | . . . 1 Utility 1 | . . 1 . Weapon 1 | . . . 1 Highest Loss Streak 2 | . . 1 2 To Critical Strikes . | . . . . Average Backups 11 | 1 10 10 18 Power . | . 2 . . Propulsion 3 | . 2 3 5 Utility 2 | . 1 1 5 Weapon 4 | . 2 5 8 Tool/Special . | . . . . Unused Backups 25 | . . 12 13 Power 2 | . . 2 . Propulsion 8 | . . 4 4 Utility 9 | . . 4 5 Weapon 5 | . . 2 3 Tool/Special 1 | . . . 1 Average Slot Usage (%) 89 | . 100 80 98 Engine 10 | . 14 7 14 Treads 28 | . 28 28 28 Device 3 | . 14 . . Storage 10 | . 14 7 14 Protection 7 | . . 7 13 Energy Gun 6 | . 28 1 . Energy Cannon 10 | . . 13 13 Ballistic Gun 7 | . . 8 13 Launcher 2 | . . 4 . Peak Build Rating 20 | 9 11 16 20 Average Rating 12 | 5 9 12 19 On Entrance 8 | . 9 11 14 Naked Turns . | . . . . Heaviest Build 65 | 15 50 61 65 Greatest Support 40 | 40 40 40 40 Greatest Overweight (x) 1 | . 1 1 1 Average Overweight (x) . | . . . 1 Largest Inventory Capacity 20 | 8 20 20 20 Average Capacity 15 | 7 18 13 20 Most Carried 20 | 2 20 20 20 Average Carried 12 | 1 10 11 19 Final Capacity 20 | 8 20 20 20 Final Carried 20 | 2 20 19 19 Class Distribution -------------------- 55% | Mutant 19% | Subdweller-Mutant 18% | Scavenger-Mutant 5% | Derelict-Mutant Dominant Class ---------------- Mutant | -10/Materials Mutant | -10/Subcaves Scavenger-Mutant | -7/Recycling Resources | -11 -10 -10 -7 ----------- Run | Yrd Mat Sub Rec Matter Collected 697 | 255 35 369 38 Remotely . | . . . . Salvage Created 1435 | 198 413 505 319 Parts 89 | 12 27 38 12 Haulers Intercepted 1 | . 1 . . Recyclers Shooed . | . . . . Parts Field Recycled . | . . . . Retrieved Matter . | . . . . Parts Self-Destructed 8 | . . 8 . Prevented . | . . . . Kills | -11 -10 -10 -7 ------- Run | Yrd Mat Sub Rec Combat Hostiles Destroyed 20 | . 7 11 2 Guns 8 | . 6 2 . Cannons 8 | . . 7 1 AOE 4 | . 1 2 1 Classes Destroyed 11 | 3 3 3 2 Worker 1 | 1 . . . Tunneler 5 | 4 1 . . Hauler 1 | . 1 . . Recycler 4 | 1 . . 3 Turret 2 | . . 2 . Watcher 1 | . 1 . . Grunt 9 | . 7 2 . Sentry 1 | . . . 1 Programmer 1 | . . . 1 Artisan 3 | . . 3 . Subdweller 9 | . . 9 . Best Kill Streak 4 | 4 2 2 2 Combat Bots Only 2 | . 2 2 1 Max Kills in Single Turn 2 | 2 1 1 1 Gunslinging . | . . . . Exploded 1 | . 1 1 1 Melee . | . . . . Uniques/NPCs Destroyed . | . . . . Combat | -11 -10 -10 -7 -------- Run | Yrd Mat Sub Rec Hostile Shots Fired 226 | . 19 75 132 Missed 78 | . 8 21 49 Hits 148 | . 11 54 83 Projectile 148 | . 11 54 83 Critical Strikes 1 | . . 1 . Damage Taken 1602 | . 150 758 694 Core 250 | . 35 102 113 Absorbed by Shields . | . . . . Core Remaining (%) 100 | 100 . . . Volleys Fired 127 | 16 23 71 17 Largest 2 | 2 2 2 2 Hottest 180 | 80 80 180 110 Shots Fired 222 | 31 46 113 32 Gun 126 | 31 46 37 12 Cannon 70 | . . 60 10 Launcher 24 | . . 14 10 Special 2 | . . 2 . Kinetic 39 | . . 27 12 Thermal 72 | . . 62 10 Explosive 24 | . . 14 10 Electromagnetic 87 | 31 46 10 . Robot Hit Streak 12 | 4 11 12 12 Robot Miss Streak 5 | 5 5 3 1 Penetration Max . | . . . . Secondary Targets . | . . . . Shots Hit Robots 118 | 14 27 54 23 Core Hits 60 | 7 14 25 14 Critical Kills . | . . . . Critical Parts Destroyed . | . . . . Critical Strikes . | . . . . Melee Attacks . | . . . . Impact . | . . . . Slashing . | . . . . Piercing . | . . . . Sneak Attacks . | . . . . Combat Hostiles . | . . . . Follow-up Attacks . | . . . . Damage Inflicted 3120 | 330 540 1496 754 Guns 1124 | 222 393 316 193 Cannons 1123 | . . 907 216 Explosions 849 | 108 147 249 345 Melee . | . . . . Ramming . | . . . . Kinetic 434 | . . 241 193 Thermal 1402 | 108 147 931 216 Explosive 594 | . . 249 345 Electromagnetic 690 | 222 393 75 . Impact . | . . . . Slashing . | . . . . Piercing . | . . . . Highest Corruption 2 | . . . 2 Average Corruption 1 | . . . 1 Corruption Purged . | . . . . Corruption Blocked . | . . . . Overload Shots . | . . . . Overflow Damage 38 | 10 . . 28 Projectiles 2 | . . . 2 Explosions 36 | 10 . . 26 Melee . | . . . . Knockbacks . | . . . . Impact . | . . . . Kinetic . | . . . . Secondary . | . . . . Self-Inflicted Damage 35 | . . . 35 Shots 2 | . . . 2 Rammed . | . . . . Targets Rammed . | . . . . Kicked . | . . . . Crushed . | . . . . Highest Temperature 240 | 122 144 72 240 Average Temperature 60 | 52 51 19 100 Received Heat Transfer 492 | . 81 207 204 Siege Activations . | . . . . Martial Activations . | . . . . Shielding Activations . | . . . . Robots Disrupted . | . . . . Combat Hostiles . | . . . . Robots Corrupted . | . . . . Combat Hostiles . | . . . . Parts Fried 3 | 2 . 1 . Impact Corruptions . | . . . . Robots Melted . | . . . . Combat Hostiles . | . . . . Parts Melted 3 | . . 2 1 Heat Transferred 1917 | 100 250 1271 296 Parts Sabotaged . | . . . . Parts Stolen . | . . . . Parts Stripped . | . . . . Power Chain Reactions 5 | 2 3 . . Alert | -11 -10 -10 -7 ------- Run | Yrd Mat Sub Rec Maximum Alert Level . | . . . . Low Security (%) 100 | 100 100 . 100 Level 1 . | . . . . Level 2 . | . . . . Level 3 . | . . . . Level 4 . | . . . . Level 5 . | . . . . High Security . | . . . . Max Security . | . . . . Peak Influence 60 | 20 60 . 55 Initial 35 | . . . 35 Average 10 | 2 15 . 6 Influence Increases 687 | 30 221 300 136 Destroy 0b10 Robot/C 260 | . 140 80 40 Destroy 0b10 Robot/NC 60 | 30 15 . 15 Destroy Leader 54 | . 44 10 . Select Force Hacks 30 | . . . 30 Disable Machine 30 | . 15 . 15 Destroy Structure 43 | . 7 . 36 Lose Combat Pursuer 210 | . . 210 . Influence Decreases 641 | 30 221 226 164 Entered New Map 39 | . . . 39 Time Decay 582 | 30 221 226 105 Lost Part 20 | . . . 20 Squads Dispatched 2 | . 2 . . Investigation 1 | . 1 . . Extermination . | . . . . Reinforcement 1 | . 1 . . Assault . | . . . . Garrison . | . . . . Intercept . | . . . . Searches Triggered . | . . . . Construction Impeded . | . . . . Haulers Reinforced . | . . . . Active Scanning Responses . | . . . . Cargo Convoy Interrupts . | . . . . Stealth | -11 -10 -10 -7 --------- Run | Yrd Mat Sub Rec Distress Signals . | . . . . Communications Jammed . | . . . . Distress Signals . | . . . . Times Spotted 36 | . 14 17 5 Peak Tracking Total 4 | . 3 2 4 Tactical Retreats 3 | . . 3 . Traps | -11 -10 -10 -7 ------- Run | Yrd Mat Sub Rec Traps Triggered 1 | . 1 . . Indirectly . | . . . . Trap Hack Attempts . | . . . . Triggered . | . . . . Disarmed . | . . . . Reprogrammed . | . . . . Reused . | . . . . Traps Extracted . | . . . . Installed . | . . . . Triggered . | . . . . Machines | -11 -10 -10 -7 ---------- Run | Yrd Mat Sub Rec Machines Disabled 5 | . 1 3 1 Max in Single Turn 2 | . 1 2 1 Machines Repaired . | . . . . Machines Dismantled . | . . . . Machines Sabotaged . | . . . . Overloaded Fab Kills . | . . . . Hacking | -11 -10 -10 -7 --------- Run | Yrd Mat Sub Rec Machines Accessed 4 | . 2 . 2 Terminals 3 | . 2 . 1 Fabricators . | . . . . Repair Stations . | . . . . Recycling Units 1 | . . . 1 Scanalyzers . | . . . . Garrison Access . | . . . . Total Hacks 14 | . 7 . 7 Successful 7 | . 4 . 3 Failed 7 | . 3 . 4 Catastrophic 2 | . 2 . . Database Lockouts . | . . . . Manual 14 | . 7 . 7 Terminals 13 | . 7 . 6 Fabricators . | . . . . Repair Stations . | . . . . Recycling Units 1 | . . . 1 Scanalyzers . | . . . . Garrison Access . | . . . . Terminal Hacks 3 | . 2 . 1 Part Schematic 1 | . 1 . . Robot Analysis 1 | . 1 . . Zone Layout 1 | . . . 1 Fabricator Hacks . | . . . . Repair Station Hacks . | . . . . Recycling Unit Hacks . | . . . . Scanalyzer . | . . . . Garrison Access Hacks . | . . . . Unauthorized Hacks 4 | . 2 . 2 Terminals 3 | . 2 . 1 Track 1 | . 1 . . Botnet 2 | . 1 . 1 Fabricators . | . . . . Repair Stations . | . . . . Recycling Units 1 | . . . 1 Tunnel 1 | . . . 1 Scanalyzers . | . . . . Garrison Access . | . . . . Data Cores Recovered . | . . . . Used . | . . . . Hacking Detections 3 | . 2 . 1 Full Trace Events 1 | . . . 1 Feedback Events . | . . . . Feedback Blocked . | . . . . Robot Schematics Acquired . | . . . . Robots Built . | . . . . Authchips . | . . . . Time . | . . . . Total Robot Build Rating . | . . . . Part Schematics Acquired 1 | . 1 . . Parts Built . | . . . . Authchips . | . . . . Time . | . . . . Total Part Build Rating . | . . . . Parts Repaired . | . . . . Time . | . . . . Parts Recycled . | . . . . Recycled Matter . | . . . . Retrieved Matter . | . . . . Retrieved Components . | . . . . Parts Scanalyzed . | . . . . Part Schematics Acquired . | . . . . Parts Damaged . | . . . . Bothacking | -11 -10 -10 -7 ------------ Run | Yrd Mat Sub Rec Used RIF Installer . | . . . . Robots Hacked . | . . . . Non-combat . | . . . . Combat . | . . . . Robot Hacks Applied . | . . . . Relay Couplers Released . | . . . . Fabnet Peak Effective % . | . . . . Robots Rewired . | . . . . Allies Hacked . | . . . . Hacks Repelled . | . . . . Allies | -11 -10 -10 -7 -------- Run | Yrd Mat Sub Rec Total Allies . | . . . . Largest Group . | . . . . Highest-Rated Group . | . . . . Highest-Rated Ally . | . . . . Total Orders . | . . . . Ally Attacks . | . . . . Total Damage . | . . . . Kills . | . . . . Allies Corrupted . | . . . . Allies Melted . | . . . . Intel | -11 -10 -10 -7 ------- Run | Yrd Mat Sub Rec Active Infowar (turns) 856 | 24 742 90 . Terrain 856 | 24 742 90 . Robot Analysis Total 1 | . 1 . . Derelict Logs Recovered 1 | . . 1 . Drone Launches . | . . . . Drone Recoveries . | . . . . Exploration | -11 -10 -10 -7 ------------- Run | Yrd Mat Sub Rec Turns Passed 3529 | 173 742 1902 712 Spaces Moved 1420 | 74 281 815 250 Core 4 | 4 . . . Treads 1416 | 70 281 815 250 Legs . | . . . . Wheels . | . . . . Hover . | . . . . Flight . | . . . . Fastest Speed 50 | 50 160 160 260 Average Speed 213 | 154 224 200 260 Slowest Speed 260 | 160 240 260 260 Overloaded Moves . | . . . . Propulsion Burnouts . | . . . . Robots Hopped . | . . . . Potential Cave-ins . | . . . . Cave-ins Triggered . | . . . . Exploration Rate (%) 40 | 5 63 32 61 Regions Visited 3 Branch Regions 2 Pre-discovered Areas 2 | . . 1 1 Known Exits Taken . | . . . . Unknown Exits Taken 3 | 1 1 1 . Scrap Searched 6 | . . 6 . Spaces Dug . | . . . . Terrain Destroyed 114 | 4 5 67 38 Melee . | . . . . Projectile 8 | . . 6 2 AOE 106 | 4 5 61 36 Terrain Rammed . | . . . . Walls Destroyed . | . . . . Machines Disabled . | . . . . Actions | -11 -10 -10 -7 --------- Run | Yrd Mat Sub Rec Total 1704 | 99 347 977 281 Wait 41 | 1 21 16 3 Move 1417 | 73 280 814 250 Hop . | . . . . Pick Up 46 | 2 19 22 3 Fast Attach 14 | 7 . 6 1 Attach 3 | . . 2 1 Detach 3 | . . 3 . Swap 14 | . 2 9 3 Drop 34 | . 2 29 3 Fire 127 | 16 23 71 17 Melee . | . . . . Ram . | . . . . Kick . | . . . . Crush . | . . . . Escape Stasis . | . . . . Rewire . | . . . . Trap . | . . . . Miscellaneous 5 | . . 5 . Route ------- -11/Scrapyard -10/Materials (discovered 4 exits: [*Mat x2] / [*Min] / [*Sub]) -10/Subcaves -7/Recycling History --------- Turn | Location | Event 42 | -11/Scrapyard | Discovered new exit (range 16) 174 | -11/Scrapyard | Entered Materials 260 | -10/Materials | Discovered new exit (range 12) 315 | -10/Materials | Build established: Mutant 545 | -10/Materials | Discovered new exit (range 3) 834 | -10/Materials | Discovered new exit (range 16) 888 | -10/Materials | Discovered new exit (range 7) 916 | -10/Materials | Entered Subcaves 917 | -10/Subcaves | Approached by a straggling Scientist 998 | -10/Subcaves | Disturbed a concealed Subdweller 1589 | -10/Subcaves | Build established: Subdweller-Mutant 1698 | -10/Subcaves | Learned location of Storage (-7) 1959 | -10/Subcaves | Discovered new exit (range 15) 2257 | -10/Subcaves | Build established: Mutant 2705 | -10/Subcaves | Ambushed by angry Subdweller bent on revenge 2707 | -10/Subcaves | Core integrity fell below 50% 2818 | -10/Subcaves | Entered Recycling 3144 | -7/Recycling | Build established: Scavenger-Mutant 3528 | -7/Recycling | Core integrity fell below 20% 3530 | -7/Recycling | Destroyed by Y-54 Guardian with Flak Gun Last Messages --------------- 02978_ R-06 Scavenger collects Tractor Beam. 02982_ R-06 Scavenger collects Com. Wheel. 03047_ Dropped Datajack. 03048_ Acquired Imp. Salvage Targeting Computer. 03064_ R-06 Scavenger collects Datajack. 03068_ Acquired 2 matter. 03073_ U-05 Engineer builds a Wall. 03236_ Destroyed Tractor Beam. 03273_ Connecting with Recycling Unit... >>Force(Tunnel) DISCOVERED[-7/Factory] 03511_ Y-54 Guardian springs to life. 03512_ Processing Tank disabled. 03512_ R-06 Scavenger destroyed. 03518_ The unstable cave ceiling collapses. 03527_ Rocket Launcher destroyed. 03527_ Spk. Treads destroyed. 03530_ Destroyed Microactuators. 03530_ Destroyed Shock Rifle. 03530_ P-60 Hacker destroyed. Map ----- +----------------------------------------------------+ | | | | | | | | | ??????????????????????????????????????? | | ??????????????????????????????????????? | | ??????????????????????????????????????? | | ??????????????????????????????????????? | | ??????????????????????????????????????? | | ??????????????????????????????????????? | | ??????????????????????????????????????? | | ??????????????????????????????????????? | | ??????????????????????????????????????? | | ??????????????????????????????????????? | | ??????????????????????????????????????? | | ?????##???????????????????????????????? | | ??#### #######????#######?????????????? | | ??# #??? !#?????????????? | | ??#= / #???! ! #?????????????? | | ??# #?? ! !! #?????????????? | | ??# / ### ##????????????? | | ??# # + # ##?????????? | | ??# ! # # ! ?????????? | | ??# # ????????? | | ??# # Y ????????? | | ??# @ Y ????????? | | ??# = ????????? | | ??# # !l ????????? | | ??# % # %=% ####?????????? | | ??# # = ##?????#######? | | ?#r # " #?????? ? | | ?## ## #??????? ?? | | ??############# #???#??? = !?? | | ?????????###### """ ##### ??? ??? | | ?????????# !!## r""" ?? ?? ! ??? | | ?????##### ## """ ##?#+##+#### | | ?????# """ #??# | | ?????# """ #??#### | | ?????# #???#"" """ | | ?????# ## #???#"Y """ | | ?????# ## """ #???#"" """ | | ?????# ######## """ #???### | | ?????# #??????# """ #?????# | | ?????# #?????## """ #######+#### | | ?????# #?????# """ #### | | ???###+####### #??# | | ???# # #??# """"" """ | | ???# # """ #??# """"" """ | | ???# "" # """ #### """"" """ | | ???# """ "" + """ + | +----------------------------------------------------+ Best States ------------- Heat Dissipation 25 Energy Generation 16 Energy Capacity 290 Matter Stores 300 Matter Capacity 300 Sight Range 16 Terrain Scan Range 16 Terrain Scan Density 10 Armor Coverage 800 Evasion (%) 40 Recoil Reduction 2 Item Schematics ----------------- Huge Storage Unit | -10/Materials | Hacked Robot Schematics ------------------ None Fabricated ------------ Nothing Repaired ---------- Nothing Alien Tech Used ----------------- None Achievements -------------- None Challenges ------------ None Game ------ Seed CargoChargeDissipator Manual? 1 Play Time 00:31:10 Cumulative 204.1 hours Start 2025.05.16 @ 01:35:25 End 2025.05.16 @ 12:18:49 Sessions 1 Manual Loads 0 Difficulty Rogue Special Mode None Game No. 112 Rogue 104 Adventurer 8 Explorer 0 Win Type - Total 6 Types 2/0/2/1/0/0/0/0/0/1 Lore% 79 Gallery% 74 Achievement% 62 Wizard Run 0 Options --------- Layout 2 ASCII 0 Keyboard 1 Movement Numpad Keybinds 1 Fullscreen 1 Font 48/Smallcaps Map View 50x44 Zoom Use 0% Tactical HUD 1 Map Filters NONE Filters NONE Steam 1 RUN: 85dc5b73-ae6c-48f9-9f31-24edc1f26399